fUSD/lending_fUSD_20241107
["ID","MTS","AMOUNT","RATE_DAILY","PERIOD"]
[341525337,1730961055215,-505.33757834,0.00031873,4]
[341525338,1730961055225,-942.73,0.00031873,4]
[341525339,1730961055235,-500.0,0.00031873,4]
[341525340,1730961055244,-500.0,0.00031873,4]
[341525341,1730961055254,-518.49644403,0.00031873,4]
[341525342,1730961055264,-500.0,0.00031873,4]
[341525343,1730961055273,-500.0,0.00031873,4]
[341525344,1730961055282,-500.0,0.00031873,4]
[341525345,1730961055292,-1648.38,0.00031873,4]
[341525346,1730961055302,-500.0,0.00031873,4]
[341525347,1730961055312,-500.0,0.00031873,4]
[341525348,1730961055325,-501.55169754,0.00031873,4]
[341525349,1730961055338,-500.0,0.00031873,4]
[341525350,1730961055348,-207.80024596,0.00031873,4]
[341525351,1730961055360,-292.19975404,0.00031873,4]
[341525352,1730961055370,-77.76528481,0.00031873,7]
[341525353,1730961055381,-73.23471519,0.00031873,7]
[341525354,1730961055390,-151.0,0.00031873,7]
[341525355,1730961055401,-151.0,0.00031873,7]
[341525356,1730961055410,-956.17,0.00031873,4]
[341525357,1730961055419,-500.0,0.00031873,4]
[341525358,1730961055428,-600.96,0.00031873,4]
[341525359,1730961055437,-525.56700096,0.00031873,4]
[341525360,1730961055446,-500.0,0.00031873,4]
[341525361,1730961055455,-155.43249902,0.00031873,4]
[341525362,1730961055467,-344.56750098,0.00031873,4]
[341525363,1730961055476,-151.0,0.00031873,7]
[341525364,1730961055485,-151.0,0.00031873,7]
[341525365,1730961055495,-500.0,0.00031873,4]
[341525366,1730961055505,-472.21894873,0.00031873,4]
[341525367,1730961055515,-500.0,0.00031873,4]
[341525368,1730961055524,-151.0,0.00031873,7]
[341525369,1730961055534,-151.0,0.00031873,7]
[341525370,1730961055543,-500.0,0.00031873,4]
[341525371,1730961055552,-522.94218755,0.00031873,4]
[341525372,1730961055561,-500.0,0.00031873,4]
[341525373,1730961055570,-500.0,0.00031873,4]
[341525374,1730961055579,-643.67,0.00031873,4]
[341525375,1730961055588,-500.0,0.00031873,4]
[341525376,1730961055597,-605.44884674,0.00031873,4]
[341525377,1730961055606,-582.3,0.00031873,4]
[341525378,1730961055616,-500.0,0.00031873,4]
[341525379,1730961055626,-500.0,0.00031873,4]
[341525380,1730961055636,-500.0,0.00031873,4]
[341525381,1730961055645,-694.57,0.00031873,4]
[341525382,1730961055654,-500.0,0.00031873,4]
[341525383,1730961055664,-1084.49,0.00031873,4]
[341525384,1730961055673,-500.0,0.00031873,4]
[341525385,1730961055682,-504.82416623,0.00031873,4]
[341525386,1730961055692,-503.05196668,0.00031873,4]
[341525387,1730961055701,-500.0,0.00031873,4]
[341525388,1730961055710,-256.58181098,0.00031873,4]
[341525389,1730961055720,-526.67340522,0.00031873,4]
[341525390,1730961055729,-500.0,0.00031873,4]
[341525391,1730961055738,-887.1592356,0.00031873,4]
[341525392,1730961056019,-1009.71667059,0.00029444,2]
[341525393,1730961056367,-847.25332941,0.00029444,2]
[341525394,1730961056376,-307.2307644,0.00031873,4]
[341525395,1730961056386,-245.65075761,0.00031873,4]
[341525396,1730961056399,-54.71665275,0.00031873,4]
[341525397,1730961056408,-564.45,0.00031873,4]
[341525398,1730961056417,-1022.68,0.00031873,4]
[341525399,1730961056426,-1192.64174804,0.00031873,4]
[341525400,1730961056437,-206.57825196,0.00031873,4]
[341525401,1730961056446,-198.844979,0.00031873,7]
[341525402,1730961056455,-151.0,0.00031873,7]
[341525403,1730961056465,-17.57676904,0.00031873,7]
[341525404,1730961056575,-133.42323096,0.00031873,7]
[341525405,1730961056585,-151.0,0.00031873,7]
[341525406,1730961056594,-724.312942,0.00031873,7]
[341525407,1730961056603,-151.0,0.00031873,7]
[341525408,1730961056612,-151.0,0.00031873,7]
[341525409,1730961056623,-160.567231,0.00031873,7]
[341525410,1730961056632,-568.29,0.00031873,4]
[341525411,1730961056642,-500.0,0.00031873,4]
[341525412,1730961056651,-724.312942,0.00031873,7]
[341525413,1730961056659,-724.312942,0.00031873,7]
[341525414,1730961056668,-724.312942,0.00031873,7]
[341525415,1730961056677,-500.0,0.00031873,4]
[341525416,1730961056686,-500.0,0.00031873,4]
[341525417,1730961056696,-154.034037,0.00031873,7]
[341525418,1730961056705,-154.034037,0.00031873,7]
[341525419,1730961056716,-500.0,0.00031873,4]
[341525420,1730961056725,-154.034037,0.00031873,7]
[341525421,1730961056734,-500.0,0.00031873,4]
[341525422,1730961056743,-500.0,0.00031873,4]
[341525423,1730961056752,-500.0,0.00031873,4]
[341525424,1730961056762,-500.0,0.00031873,4]
[341525425,1730961056772,-548.89,0.00031873,4]
[341525426,1730961056781,-154.034037,0.00031873,7]
[341525427,1730961056790,-500.0,0.00031873,4]
[341525428,1730961056800,-154.034037,0.00031873,7]
[341525429,1730961056809,-154.034037,0.00031873,7]
[341525430,1730961056818,-500.0,0.00031873,4]
[341525431,1730961056827,-392.23944536,0.00031873,4]
[341525432,1730961056839,-107.76055464,0.00031873,4]
[341525433,1730961056847,-769.97,0.00031873,4]
[341525434,1730961056856,-196.96944536,0.00031873,4]
[341525435,1730961056867,-303.03055464,0.00031873,4]
[341525436,1730961056877,-166.462487,0.00031873,7]
[341525437,1730961056886,-500.0,0.00031873,4]
[341525438,1730961056895,-166.462487,0.00031873,7]
[341525439,1730961056904,-166.462487,0.00031873,7]
[341525440,1730961056914,-500.0,0.00031873,4]
[341525441,1730961056923,-500.0,0.00031873,4]
[341525442,1730961056932,-1057.44,0.00031873,4]
[341525443,1730961056941,-166.462487,0.00031873,7]
[341525444,1730961056950,-166.462487,0.00031873,7]
[341525445,1730961056960,-822.77,0.00031873,4]
[341525446,1730961056969,-515.85,0.00031873,4]
[341525447,1730961056979,-166.462487,0.00031873,7]
[341525448,1730961056988,-500.0,0.00031873,4]
[341525449,1730961056997,-500.0,0.00031873,4]
[341525450,1730961057007,-500.0,0.00031873,4]
[341525451,1730961057016,-633.44,0.00031873,4]
[341525452,1730961057025,-754.45,0.00031873,4]
[341525453,1730961057034,-500.0,0.00031873,4]
[341525454,1730961057043,-570.90396599,0.00031873,4]
[341525455,1730961057052,-500.0,0.00031873,4]
[341525456,1730961057061,-1047.0,0.00031873,4]
[341525457,1730961057070,-500.0,0.00031873,4]
[341525458,1730961057079,-227.94874794,0.00031873,4]
[341525459,1730961057088,-785.91,0.00031873,4]
[341525460,1730961057097,-500.0,0.00031873,4]
[341525461,1730961057107,-501.62687871,0.00031873,4]
[341525462,1730961057117,-1070.66,0.00031873,4]
[341525463,1730961057126,-555.5491722,0.00031873,4]
[341525464,1730961057135,-546.46788652,0.00031873,4]
[341525465,1730961057144,-500.0,0.00031873,4]
[341525466,1730961057153,-500.0,0.00031873,4]
[341525467,1730961057162,-527.27102885,0.00031873,4]
[341525468,1730961057172,-1739.43,0.00031873,4]
[341525469,1730961057182,-151.0,0.00031873,7]
[341525470,1730961057191,-556.01,0.00031873,4]
[341525471,1730961057405,-151.0,0.00031873,7]
[341525472,1730961057416,-500.0,0.00031873,4]
[341525473,1730961057426,-500.0,0.00031873,4]
[341525474,1730961057436,-500.0,0.00031873,4]
[341525475,1730961057446,-520.19972454,0.00031873,4]
[341525476,1730961057456,-885.67,0.00031873,4]
[341525477,1730961057466,-280.113445,0.00031873,7]
[341525478,1730961057476,-500.0,0.00031873,4]
[341525479,1730961057486,-1049.05,0.00031873,4]
[341525480,1730961057496,-151.0,0.00031873,7]
[341525481,1730961057505,-500.0,0.00031873,4]
[341525482,1730961057520,-151.0,0.00031873,7]
[341525483,1730961057529,-500.0,0.00031873,4]
[341525484,1730961057540,-151.0,0.00031873,7]
[341525485,1730961057549,-500.0,0.00031873,4]
[341525486,1730961057558,-583.18,0.00031873,4]
[341525487,1730961057566,-876.89,0.00031873,4]
[341525488,1730961057575,-500.0,0.00031873,4]
[341525489,1730961057584,-2272.02,0.00031873,4]
[341525490,1730961057593,-237.857448,0.00031873,7]
[341525491,1730961057602,-599.49,0.00031873,4]
[341525492,1730961057612,-500.0,0.00031873,4]
[341525493,1730961057621,-500.0,0.00031873,4]
[341525494,1730961057631,-695.37,0.00031873,4]
[341525495,1730961057640,-732.38,0.00031873,4]
[341525496,1730961057649,-500.0,0.00031873,4]
[341525497,1730961057658,-701.48,0.00031873,4]
[341525498,1730961057667,-500.0,0.00031873,4]
[341525499,1730961057676,-500.0,0.00031873,4]
[341525500,1730961057686,-1066.66,0.00031873,4]
[341525501,1730961057695,-837.83,0.00031873,4]
[341525502,1730961057704,-537.88,0.00031873,4]
[341525503,1730961057714,-327.51824055,0.00031873,4]
[341525504,1730961057723,-802.13,0.00031873,4]
[341525505,1730961057733,-500.0,0.00031873,4]
[341525506,1730961057742,-500.0,0.00031873,4]
[341525507,1730961057751,-500.0,0.00031873,4]
[341525508,1730961057770,-500.0,0.00031873,4]
[341525509,1730961057779,-500.0,0.00031873,4]
[341525510,1730961057789,-6029.66,0.00031873,4]
[341525511,1730961057798,-500.0,0.00031873,4]
[341525512,1730961057807,-500.0,0.00031873,4]
[341525513,1730961057817,-501.5579018,0.00031873,4]
[341525514,1730961057826,-500.0,0.00031873,4]
[341525515,1730961057835,-502.40912547,0.00031873,4]
[341525516,1730961057844,-500.0,0.00031873,4]
[341525517,1730961057854,-613.07,0.00031873,4]
[341525518,1730961057863,-827.06,0.00031873,4]
[341525519,1730961057872,-500.0,0.00031873,4]
[341525520,1730961057882,-602.82,0.00031873,4]
[341525521,1730961057891,-500.0,0.00031873,4]
[341525522,1730961057901,-500.0,0.00031873,4]
[341525523,1730961057911,-498.27437864,0.00031873,4]
[341525524,1730961057920,-3100.54,0.00031873,4]
[341525525,1730961057930,-551.3,0.00031873,4]
[341525526,1730961057941,-1622.88,0.00031873,4]
[341525527,1730961057952,-500.0,0.00031873,4]
[341525528,1730961057961,-500.0,0.00031873,4]
[341525529,1730961057971,-912.13,0.00031873,4]
[341525530,1730961057983,-1161.01,0.00031873,4]
[341525531,1730961057992,-151.0,0.00031873,7]
[341525532,1730961058001,-151.0,0.00031873,7]
[341525533,1730961058016,-500.0,0.00031873,4]
[341525534,1730961058025,-151.0,0.00031873,7]
[341525535,1730961058034,-500.0,0.00031873,4]
[341525536,1730961058043,-500.0,0.00031873,4]
[341525537,1730961058053,-1653.17,0.00031873,4]
[341525538,1730961058062,-111.62688569,0.00031873,7]
[341525539,1730961058619,-39.37311431,0.00031873,7]
[341525540,1730961058629,-151.0,0.00031873,7]
[341525541,1730961058639,-151.0,0.00031873,7]
[341525542,1730961058648,-1394.85812474,0.00031873,4]
[341525543,1730961060016,-1303.49999975,0.00031873,4]
[341525544,1730961060725,-500.0,0.00031497,4]
[341525545,1730961060735,-271.79786336,0.00031499,2]
[341525546,1730961060745,-150.0,0.00031635,2]
[341525547,1730961060754,-150.0,0.00031672,2]
[341525548,1730961060767,-150.0,0.00031685,2]
[341525549,1730961060777,-500.0,0.00031699,4]
[341525550,1730961060787,-150.0,0.00031731,2]
[341525551,1730961060796,-150.0,0.0003175,2]
[341525552,1730961060805,-500.0,0.00031771,4]
[341525553,1730961060815,-2700.7433437,0.00031873,4]
[341525554,1730961060826,-374.10672,0.00031873,4]
[341525555,1730961060837,-698.81409381,0.00031873,4]
[341525556,1730961060913,-150.0,0.00031625,2]
[341525557,1730961060926,-150.0,0.00031638,2]
[341525558,1730961060945,-150.0,0.00031652,2]
[341525559,1730961060962,-150.0,0.00031664,2]
[341525560,1730961060981,-150.0,0.00031687,2]
[341525561,1730961061002,-150.0,0.00031738,2]
[341525562,1730961061020,-3181.577718,0.00031873,4]
[341525563,1730961061039,-500.0,0.00031873,4]
[341525564,1730961061054,-657.36919038,0.00031873,4]
[341525565,1730961061074,-783.86171809,0.00031873,4]
[341525566,1730961061097,-437.20909153,0.00031873,4]
[341525567,1730961061114,-315.890533,0.00031873,7]
[341525568,1730961061127,-192.90037547,0.00031873,7]
[341525569,1730961061148,-122.99015753,0.00031873,7]
[341525570,1730961061166,-315.890533,0.00031873,7]
[341525571,1730961061180,-1264.12,0.00031873,4]
[341525572,1730961061201,-500.0,0.00031873,4]
[341525573,1730961061215,-500.0,0.00031873,4]
[341525574,1730961061231,-500.0,0.00031873,4]
[341525575,1730961061247,-500.0,0.00031873,4]
[341525576,1730961061262,-315.890533,0.00031873,7]
[341525577,1730961061277,-315.890533,0.00031873,7]
[341525578,1730961061293,-1910.540999,0.00031873,7]
[341525579,1730961061308,-1910.540999,0.00031873,7]
[341525580,1730961061325,-315.890537,0.00031873,7]
[341525581,1730961061341,-500.0,0.00031873,4]
[341525582,1730961061356,-1910.540999,0.00031873,7]
[341525583,1730961061372,-628.6,0.00031873,4]
[341525584,1730961061388,-1663.58,0.00031873,4]
[341525585,1730961061404,-506.86,0.00031873,4]
[341525586,1730961061418,-1910.540999,0.00031873,7]
[341525587,1730961061434,-563.82225775,0.00031873,7]
[341525588,1730961061490,-150.0,0.00031824,2]
[341525589,1730961061505,-1346.71874125,0.00031873,7]
[341525590,1730961061521,-500.0,0.00031873,4]
[341525591,1730961061536,-1375.47,0.00031873,4]
[341525592,1730961061552,-1910.541005,0.00031873,7]
[341525593,1730961061566,-151.0,0.00031873,7]
[341525594,1730961061581,-500.0,0.00031873,4]
[341525595,1730961061596,-500.0,0.00031873,4]
[341525596,1730961061611,-937.21,0.00031873,4]
[341525597,1730961061630,-3401.2,0.00031873,4]
[341525598,1730961061648,-1086.05,0.00031873,4]
[341525599,1730961061665,-930.04,0.00031873,4]
[341525600,1730961061683,-498.26094126,0.00031873,4]
[341525601,1730961061699,-506.19665719,0.00031873,4]
[341525602,1730961061715,-500.0,0.00031873,4]
[341525603,1730961061731,-500.0,0.00031873,4]
[341525604,1730961061747,-500.0,0.00031873,4]
[341525605,1730961061765,-500.0,0.00031873,4]
[341525606,1730961061782,-500.0,0.00031873,4]
[341525607,1730961061797,-1382.77,0.00031873,4]
[341525608,1730961061813,-500.0,0.00031873,4]
[341525609,1730961061829,-1166.68,0.00031873,4]
[341525610,1730961061844,-500.0,0.00031873,4]
[341525611,1730961061859,-2191.16,0.00031873,4]
[341525612,1730961061876,-500.0,0.00031873,4]
[341525613,1730961061892,-500.0,0.00031873,4]
[341525614,1730961061907,-502.94526784,0.00031873,4]
[341525615,1730961061922,-1013.73,0.00031873,4]
[341525616,1730961061938,-2809.55,0.00031873,4]
[341525617,1730961061955,-500.0,0.00031873,4]
[341525618,1730961061971,-517.36,0.00031873,4]
[341525619,1730961061986,-151.0,0.00031873,7]
[341525620,1730961062002,-151.0,0.00031873,7]
[341525621,1730961062018,-151.0,0.00031873,7]
[341525622,1730961062034,-170.390556,0.00031873,7]
[341525623,1730961062050,-1007.47,0.00031873,4]
[341525624,1730961062066,-500.0,0.00031873,4]
[341525625,1730961062081,-500.0,0.00031873,4]
[341525626,1730961062096,-2170.78,0.00031873,4]
[341525627,1730961062110,-4439.07,0.00031873,4]
[341525628,1730961062125,-1969.43,0.00031873,4]
[341525629,1730961062141,-500.0,0.00031873,4]
[341525630,1730961062156,-500.0,0.00031873,4]
[341525631,1730961062171,-500.0,0.00031873,4]
[341525632,1730961062186,-500.0,0.00031873,4]
[341525633,1730961062201,-500.0,0.00031873,4]
[341525634,1730961062216,-502.66296479,0.00031873,4]
[341525635,1730961062232,-500.0,0.00031873,4]
[341525636,1730961062248,-909.27,0.00031873,4]
[341525637,1730961062266,-582.09,0.00031873,4]
[341525638,1730961062281,-500.0,0.00031873,4]
[341525639,1730961062296,-697.39,0.00031873,4]
[341525640,1730961062311,-501.51576701,0.00031873,4]
[341525641,1730961062328,-500.0,0.00031873,4]
[341525642,1730961062344,-1515.53,0.00031873,4]
[341525643,1730961062355,-500.0,0.00031873,4]
[341525644,1730961062364,-500.0,0.00031873,4]
[341525645,1730961062374,-500.0,0.00031873,4]
[341525646,1730961062384,-500.0,0.00031873,4]
[341525647,1730961062393,-512.81,0.00031873,4]
[341525648,1730961062403,-1099.94,0.00031873,4]
[341525649,1730961062412,-500.0,0.00031873,4]
[341525650,1730961062422,-2033.92,0.00031873,4]
[341525651,1730961062432,-500.0,0.00031873,4]
[341525652,1730961062441,-500.0,0.00031873,4]
[341525653,1730961062451,-500.0,0.00031873,4]
[341525654,1730961062460,-500.0,0.00031873,4]
[341525655,1730961062469,-500.0,0.00031873,4]
[341525656,1730961062479,-500.0,0.00031873,4]
[341525657,1730961062488,-1417.3,0.00031873,4]
[341525658,1730961062497,-500.0,0.00031873,4]
[341525659,1730961062505,-500.0,0.00031873,4]
[341525660,1730961062516,-500.0,0.00031873,4]
[341525661,1730961062525,-944.64,0.00031873,4]
[341525662,1730961062535,-1101.72,0.00031873,4]
[341525663,1730961062545,-500.0,0.00031873,4]
[341525664,1730961062554,-525.27,0.00031873,4]
[341525665,1730961062564,-500.0,0.00031873,4]
[341525666,1730961062573,-500.0,0.00031873,4]
[341525667,1730961062582,-500.0,0.00031873,4]
[341525668,1730961062592,-555.49371163,0.00031873,4]
[341525669,1730961062601,-500.0,0.00031873,4]
[341525670,1730961062610,-2391.27,0.00031873,4]
[341525671,1730961062619,-742.32,0.00031873,4]
[341525672,1730961062629,-500.0,0.00031873,4]
[341525673,1730961062639,-1345.45,0.00031873,4]
[341525674,1730961062649,-500.0,0.00031873,4]
[341525675,1730961062658,-254.30128992,0.00031873,4]
[341525676,1730961062668,-505.38299993,0.00031873,4]
[341525677,1730961062677,-711.47,0.00031873,4]
[341525678,1730961062687,-500.0,0.00031873,4]
[341525679,1730961062695,-500.0,0.00031873,4]
[341525680,1730961062704,-500.0,0.00031873,4]
[341525681,1730961062713,-539.07705269,0.00031873,4]
[341525682,1730961062723,-500.0,0.00031873,4]
[341525683,1730961063284,-502.07443273,0.00031873,4]
[341525684,1730961063327,-500.0,0.00031873,4]
[341525685,1730961063354,-500.0,0.00031873,4]
[341525686,1730961063380,-4222.21,0.00031873,4]
[341525687,1730961063392,-1267.94,0.00031873,4]
[341525688,1730961063403,-500.0,0.00031873,4]
[341525689,1730961063412,-500.0,0.00031873,4]
[341525690,1730961063423,-500.0,0.00031873,4]
[341525691,1730961063433,-500.0,0.00031873,4]
[341525692,1730961063444,-165.42861286,0.00031873,4]
[341525693,1730961063512,-150.0,0.00031705,2]
[341525694,1730961063522,-334.57138714,0.00031873,4]
[341525695,1730961063532,-375.22851286,0.00031873,7]
[341525696,1730961063569,-150.0,0.00031728,2]
[341525697,1730961063579,-94.63749114,0.00031873,7]
[341525698,1730961063588,-500.0,0.00031873,4]
[341525699,1730961063599,-469.866004,0.00031873,7]
[341525700,1730961063609,-500.0,0.00031873,4]
[341525701,1730961063619,-500.0,0.00031873,4]
[341525702,1730961063632,-469.866004,0.00031873,7]
[341525703,1730961063642,-469.86601,0.00031873,7]
[341525704,1730961063651,-1082.92,0.00031873,4]
[341525705,1730961063661,-1558.71,0.00031873,4]
[341525706,1730961063671,-500.0,0.00031873,4]
[341525707,1730961063681,-500.0,0.00031873,4]
[341525708,1730961063691,-2825.94,0.00031873,4]
[341525709,1730961063701,-598.45,0.00031873,4]
[341525710,1730961063711,-591.86716012,0.00031873,4]
[341525711,1730961063720,-379.779028,0.00031873,7]
[341525712,1730961063730,-379.779028,0.00031873,7]
[341525713,1730961063740,-500.0,0.00031873,4]
[341525714,1730961063750,-500.0,0.00031873,4]
[341525715,1730961063760,-500.0,0.00031873,4]
[341525716,1730961063769,-379.779028,0.00031873,7]
[341525717,1730961063780,-1164.27,0.00031873,4]
[341525718,1730961063790,-379.779027,0.00031873,7]
[341525719,1730961063800,-166.87115,0.00031873,7]
[341525720,1730961063810,-166.87115,0.00031873,7]
[341525721,1730961063821,-444.42738294,0.00031873,4]
[341525722,1730961063954,-150.0,0.00031747,2]
[341525723,1730961063965,-150.0,0.00031776,2]
[341525724,1730961063975,-150.0,0.00031818,2]
[341525725,1730961063985,-795.72261706,0.00031873,4]
[341525726,1730961063995,-500.0,0.00031873,4]
[341525727,1730961064004,-500.0,0.00031873,4]
[341525728,1730961064016,-166.87115,0.00031873,7]
[341525729,1730961064026,-166.871149,0.00031873,7]
[341525730,1730961064035,-500.0,0.00031873,4]
[341525731,1730961064045,-500.0,0.00031873,4]
[341525732,1730961064055,-500.0,0.00031873,4]
[341525733,1730961064065,-3926.19,0.00031873,4]
[341525734,1730961064074,-1350.58,0.00031873,4]
[341525735,1730961064085,-505.49,0.00031873,4]
[341525736,1730961064095,-500.0,0.00031873,4]
[341525737,1730961064105,-500.0,0.00031873,4]
[341525738,1730961064115,-512.4013171,0.00031873,4]
[341525739,1730961064125,-500.0,0.00031873,4]
[341525740,1730961064135,-2124.83,0.00031873,4]
[341525741,1730961064144,-500.0,0.00031873,4]
[341525742,1730961064154,-283.15255043,0.00031873,4]
[341525743,1730961064164,-7719.24,0.00031873,4]
[341525744,1730961064173,-3366.87,0.00031873,4]
[341525745,1730961064184,-500.0,0.00031873,4]
[341525746,1730961064193,-500.0,0.00031873,4]
[341525747,1730961064203,-500.0,0.00031873,4]
[341525748,1730961064212,-500.0,0.00031873,4]
[341525749,1730961064223,-500.0,0.00031873,4]
[341525750,1730961064233,-685.11,0.00031873,4]
[341525751,1730961064243,-519.59,0.00031873,4]
[341525752,1730961064252,-500.0,0.00031873,4]
[341525753,1730961064264,-1312.11,0.00031873,4]
[341525754,1730961064274,-4163.98,0.00031873,4]
[341525755,1730961064284,-500.0,0.00031873,4]
[341525756,1730961064293,-500.0,0.00031873,4]
[341525757,1730961064304,-903.28,0.00031873,4]
[341525758,1730961064316,-500.0,0.00031873,4]
[341525759,1730961064328,-500.0,0.00031873,4]
[341525760,1730961064337,-628.07,0.00031873,4]
[341525761,1730961064347,-500.0,0.00031873,4]
[341525762,1730961064358,-500.0,0.00031873,4]
[341525763,1730961064368,-500.0,0.00031873,4]
[341525764,1730961064379,-3302.28,0.00031873,4]
[341525765,1730961064388,-500.0,0.00031873,4]
[341525766,1730961064398,-543.16,0.00031873,4]
[341525767,1730961064409,-1156.76,0.00031873,4]
[341525768,1730961064419,-500.0,0.00031873,4]
[341525769,1730961064429,-500.0,0.00031873,4]
[341525770,1730961064439,-500.0,0.00031873,4]
[341525771,1730961064449,-1244.12,0.00031873,4]
[341525772,1730961064459,-663.83,0.00031873,4]
[341525773,1730961064469,-1036.87,0.00031873,4]
[341525774,1730961064480,-777.47,0.00031873,4]
[341525775,1730961064491,-150.0,0.00031876,2]
[341525776,1730961064503,-200.54862465,0.00031878,2]
[341525777,1730961064514,-500.0,0.00031879,4]
[341525778,1730961064525,-1543.02,0.00031879,4]
[341525779,1730961064535,-2284.77,0.00031879,4]
[341525780,1730961064545,-1170.35,0.00031879,4]
[341525781,1730961064555,-500.0,0.00031879,2]
[341525782,1730961064565,-500.0,0.00031879,4]
[341525783,1730961064575,-500.0,0.00031879,4]
[341525784,1730961064585,-500.0,0.00031879,4]
[341525785,1730961064595,-500.0,0.00031879,4]
[341525786,1730961064605,-500.0,0.00031879,4]
[341525787,1730961064615,-3369.6,0.00031879,4]
[341525788,1730961064625,-4395.07,0.00031879,4]
[341525789,1730961064636,-166302.84093438,0.0003188,7]
[341525790,1730961064648,-215.0,0.0003188,7]
[341525791,1730961064658,-298.0,0.0003188,27]
[341525792,1730961064668,-13916.76302689,0.0003188,2]
[341525793,1730961064679,-151.0,0.0003188,7]
[341525794,1730961064689,-151.0,0.0003188,7]
[341525795,1730961064700,-151.0,0.0003188,7]
[341525796,1730961064711,-151.0,0.0003188,7]
[341525797,1730961064721,-157.9984,0.0003188,7]
[341525798,1730961064731,-151.0,0.0003188,7]
[341525799,1730961064741,-151.0,0.0003188,7]
[341525800,1730961064751,-151.0,0.0003188,7]
[341525801,1730961064765,-151.0,0.0003188,7]
[341525802,1730961064775,-151.0,0.0003188,7]
[341525803,1730961064784,-151.0,0.0003188,7]
[341525804,1730961064794,-151.239118,0.0003188,7]
[341525805,1730961064804,-151.239118,0.0003188,7]
[341525806,1730961064813,-151.0,0.0003188,7]
[341525807,1730961064823,-151.0,0.0003188,7]
[341525808,1730961064832,-163.288348,0.0003188,7]
[341525809,1730961064842,-714.414222,0.0003188,7]
[341525810,1730961064851,-163.288348,0.0003188,7]
[341525811,1730961064861,-151.0,0.0003188,7]
[341525812,1730961064871,-151.0,0.0003188,7]
[341525813,1730961064880,-229.792347,0.0003188,7]
[341525814,1730961064890,-724.312942,0.0003188,7]
[341525815,1730961064900,-151.0,0.0003188,7]
[341525816,1730961064909,-724.312942,0.0003188,7]
[341525817,1730961064919,-154.034037,0.0003188,7]
[341525818,1730961064928,-154.034037,0.0003188,7]
[341525819,1730961064938,-166.462487,0.0003188,7]
[341525820,1730961064949,-166.462487,0.0003188,7]
[341525821,1730961064959,-151.0,0.0003188,7]
[341525822,1730961064969,-151.0,0.0003188,7]
[341525823,1730961064979,-151.0,0.0003188,7]
[341525824,1730961064989,-151.0,0.0003188,7]
[341525825,1730961064998,-1000.0,0.0003188,12]
[341525826,1730961065007,-251.0,0.00031881,3]
[341525827,1730961065020,-1157.0,0.00031883,2]
[341525828,1730961065029,-8349.56534702,0.000319,2]
[341525829,1730961065039,-187.39917289,0.000319,2]
[341525830,1730961065048,-2000.0,0.000319,9]
[341525831,1730961065058,-2000.0,0.000319,9]
[341525832,1730961065067,-736.2,0.000319,2]
[341525833,1730961065076,-1200.0,0.000319,11]
[341525834,1730961065086,-1000.0,0.000319,2]
[341525835,1730961065095,-363.0,0.000319,2]
[341525836,1730961065104,-1000.0,0.000319,12]